bitfinex/quotes_ETHUSD_20251118
["timestamp","ask_amount","ask_price","bid_price","bid_amount"]
[1763482744818,0.1883,3153.6,3152.8,5.67496257]
[1763482744819,0.297,3153.3,3153.2,2.20893574]
[1763482745047,0.297,3153.3,3152.7,2.49893574]
[1763482745315,0.7731,3153.2,3152.8,2.20893574]
[1763482745519,0.4761,3153.1,3152.8,2.20893574]
[1763482745941,0.297,3153.0,3152.7,2.49929113]
[1763482746221,0.4824,3152.9,3152.7,0.29]
[1763482746541,0.1903,3154.1,3152.8,0.1238]
[1763482746752,0.1903,3154.1,3153.5,2.20907578]
[1763482746753,0.7804,3154.0,3153.5,2.20907578]
[1763482747125,0.7804,3153.9,3153.5,2.20907578]
[1763482747542,0.4824,3153.8,3153.5,2.20907578]
[1763482748061,0.298,3153.7,3153.5,2.20907578]
[1763482748230,1.029,3154.6,3153.1,8.50039787]
[1763482748231,0.1903,3154.5,3153.1,8.50039787]
[1763482748429,0.298,3154.4,3154.1,2.20953441]
[1763482748760,0.298,3154.4,3153.7,5.67496257]
[1763482748761,0.298,3154.3,3154.0,2.8254353]
[1763482749059,0.4824,3155.7,3154.1,0.03170476]
[1763482749227,1.2173,3156.3,3155.2,2.20780903]
[1763482749228,0.298,3155.5,3155.2,2.20780903]
[1763482749419,0.298,3155.5,3154.2,2.20780903]
[1763482749621,0.298,3155.5,3153.6,2.20780903]
[1763482749622,0.1903,3154.7,3153.6,2.20780903]
[1763482749858,0.1903,3154.7,3152.7,2.49780903]
[1763482749859,0.1903,3153.4,3152.7,2.49780903]
[1763482750161,0.01586,3152.8,3152.7,0.29]
[1763482750322,0.26790643,3152.8,3152.7,6.45316257]
[1763482750522,0.4824,3154.6,3152.7,6.45316257]
[1763482750756,0.6727,3155.1,3154.2,2.21403939]
[1763482750940,0.6727,3155.1,3152.9,3.97744689]
[1763482750941,0.4824,3155.0,3154.4,2.21403939]
[1763482751250,0.4824,3155.0,3153.7,6.68075253]
[1763482751251,0.4824,3155.0,3154.0,2.21403939]
[1763482751452,0.4824,3155.0,3154.1,2.21403939]
[1763482752029,0.4824,3155.0,3153.8,2.21403939]
[1763482753223,0.4824,3155.0,3153.9,2.21403939]
[1763482753423,0.4824,3155.0,3154.0,2.21403939]
[1763482753631,0.1903,3155.1,3153.2,0.4882]
[1763482753632,0.1903,3155.1,3154.1,2.24574415]
[1763482753831,3.000021,3155.0,3154.3,2.21403939]
[1763482754052,3.000021,3155.0,3153.9,2.76754924]
[1763482754053,2.999221,3155.0,3154.4,2.21403939]
[1763482754223,3.481621,3155.0,3154.4,2.21403939]
[1763482754424,3.481621,3155.0,3154.0,2.76754924]
[1763482754425,0.4824,3154.9,3154.3,2.21403939]
[1763482754759,0.4824,3154.9,3153.5,3.97744689]
[1763482754760,0.4824,3154.9,3153.8,2.21403939]
[1763482754964,0.4824,3154.9,3153.7,2.21403939]
[1763482755124,0.4824,3154.9,3153.9,2.21403939]
[1763482755329,0.4824,3154.9,3154.3,2.21403939]
[1763482755657,2.999221,3155.0,3154.6,2.21403939]
[1763482755862,2.999221,3155.0,3154.9,2.20879918]
[1763482756049,2.999221,3155.0,3154.1,0.4882]
[1763482756050,2.999221,3155.0,3154.5,2.76754924]
[1763482756222,2.999221,3155.0,3154.7,2.76754924]
[1763482756427,2.999221,3155.0,3154.9,2.76754924]
[1763482756626,2.999221,3155.0,3154.7,2.76754924]
[1763482756822,0.4824,3154.9,3154.4,2.20891903]
[1763482757260,0.4824,3154.9,3154.5,0.03170074]
[1763482757449,0.4824,3154.9,3154.4,2.20891903]
[1763482757930,3.189521,3155.0,3154.4,2.20891903]
[1763482758130,2.999221,3155.0,3154.8,2.20891903]
[1763482758458,2.999221,3155.0,3154.9,2.20891903]
[1763482758626,2.999221,3155.0,3154.7,2.76754924]
[1763482758828,0.5607281,3155.0,3154.9,2.76754924]
[1763482759358,0.5607281,3155.0,3154.8,2.76754924]
[1763482759559,0.5607281,3155.0,3154.8,3.25574924]
[1763482759860,0.5607281,3155.0,3154.9,2.20903394]
[1763482760268,0.5607281,3155.0,3154.8,2.20903394]
[1763482760479,0.4577,3154.9,3154.6,2.20903394]
[1763482760640,0.4577,3154.9,3154.3,2.20903394]
[1763482760845,0.4577,3154.9,3154.2,2.20903394]
[1763482761043,0.4577,3154.9,3153.4,3.97744689]
[1763482761044,0.4577,3154.9,3154.3,0.03170275]
[1763482761363,0.7421281,3155.0,3154.2,2.20903394]
[1763482761545,0.7421281,3155.0,3154.4,2.20903394]
[1763482761741,0.5607281,3155.0,3154.4,2.20903394]
[1763482761941,0.5607281,3155.0,3153.5,3.97744689]
[1763482761942,0.5607281,3155.0,3154.8,2.76754924]
[1763482762168,0.5607281,3155.0,3154.3,0.6639]
[1763482762169,0.5607281,3155.0,3154.6,2.76754924]
[1763482762536,0.4577,3154.9,3154.7,2.2085183]
[1763482762773,0.4577,3154.9,3154.1,3.97744689]
[1763482762774,0.5607281,3155.0,3154.4,2.2085183]
[1763482763074,0.7421281,3155.0,3154.7,2.2085183]
[1763482763367,0.4577,3154.9,3154.3,2.2085183]
[1763482763577,0.4577,3154.9,3154.2,2.2085183]
[1763482763773,0.4577,3154.9,3152.8,5.68306699]
[1763482763774,0.4577,3154.9,3154.3,0.03170275]
[1763482763981,0.7421281,3155.0,3154.1,2.2085183]
[1763482764137,0.5607281,3155.0,3154.2,2.2085183]
[1763482764495,0.5607281,3155.0,3154.4,2.2085183]
[1763482764645,0.7421281,3155.0,3154.2,2.2085183]
[1763482764847,0.7421281,3155.0,3154.1,2.2085183]
[1763482765261,0.4577,3154.9,3154.0,2.2085183]
[1763482765459,0.4577,3154.9,3153.6,2.2085183]
[1763482765974,0.4577,3154.9,3153.9,2.2085183]
[1763482766138,0.7421281,3155.0,3152.7,4.26744689]
[1763482766139,1.3,3154.8,3153.6,2.76754924]
[1763482766338,0.1814,3153.7,3152.7,0.29]
[1763482766774,0.4577,3153.6,3152.7,0.29]
[1763482767341,0.1814,3153.7,3152.7,0.29]
[1763482767944,0.4577,3153.6,3152.7,0.29]
[1763482768893,0.7421281,3155.0,3152.7,0.29]
[1763482768894,0.6391,3154.2,3152.7,0.29]
[1763482769263,0.4577,3154.1,3152.7,0.29]
[1763482770296,0.1814,3154.5,3152.9,0.4972]
[1763482770500,0.1814,3154.5,3152.7,0.29]
[1763482770670,0.4577,3154.4,3152.7,0.29]
[1763482772202,0.4577,3154.4,3152.9,0.4972]
[1763482772364,0.4577,3154.9,3152.9,0.4972]
[1763482772884,0.4577,3154.9,3152.7,0.29]
[1763482774967,0.4577,3154.9,3152.9,0.4972]
[1763482776386,0.4577,3154.9,3152.7,0.29]
[1763482777583,0.4569,3154.9,3152.9,0.466]
[1763482778207,0.4569,3154.9,3152.7,0.29]
[1763482780895,3.378,3154.8,3152.7,0.29]
[1763482781099,0.38349,3154.7,3152.7,0.29]
[1763482781275,0.7421281,3155.0,3152.7,0.29]
[1763482781276,0.4575,3154.8,3152.7,0.29]
[1763482781476,3.378,3154.8,3152.7,0.29]
[1763482781671,0.4575,3154.7,3152.7,0.29]
[1763482782990,0.4575,3154.7,3152.8,0.467]
[1763482784010,0.002,3154.9,3152.8,0.467]
[1763482784410,0.002,3154.9,3154.0,6.68075253]
[1763482784923,0.002,3154.9,3154.8,0.1667]
[1763482785927,0.002,3154.9,3154.4,0.1667]
[1763482786735,0.002,3154.9,3154.4,0.6327]
[1763482786896,0.002,3154.9,3154.1,0.1667]
[1763482787320,0.002,3154.9,3154.1,0.6327]
[1763482788823,0.002,3154.9,3154.1,0.1667]
[1763482790189,0.002,3154.9,3154.1,0.6327]
[1763482790704,0.002,3154.9,3154.2,0.466]
[1763482791103,0.002,3154.9,3154.1,0.1667]
[1763482791495,0.002,3154.9,3154.2,0.466]
[1763482792927,0.3627281,3155.0,3154.9,0.1667]
[1763482793228,0.8202281,3155.0,3153.7,0.1667]
[1763482793605,0.4575,3154.9,3153.7,0.1667]
[1763482794127,0.4575,3154.9,3153.4,0.1667]
[1763482794302,0.4575,3154.9,3153.1,0.1667]
[1763482794691,0.4575,3154.9,3152.7,0.29]
[1763482794895,0.4575,3154.9,3152.8,0.6337]
[1763482795128,0.4575,3154.9,3152.9,0.466]
[1763482795327,0.4575,3154.9,3152.8,0.1677]
[1763482797929,0.4575,3154.9,3152.8,0.6337]
[1763482799038,0.4575,3154.9,3152.8,0.1677]
[1763482799242,0.4575,3154.9,3152.8,0.001]
[1763482799741,0.3627281,3155.0,3152.9,0.466]
[1763482799952,0.4575,3154.9,3153.0,6.62017893]
[1763482800307,0.4575,3154.9,3152.8,0.1677]
[1763482800506,0.4575,3154.9,3153.1,7.08617893]
[1763482800932,0.4575,3154.9,3153.2,0.466]
[1763482801529,0.4567,3154.9,3153.1,6.62017893]
[1763482801843,0.4567,3154.9,3152.9,0.466]
[1763482802207,0.4567,3154.9,3152.8,0.1677]
[1763482802208,0.4567,3154.9,3152.8,0.001]
[1763482802409,0.4567,3154.9,3152.9,0.466]
[1763482802727,0.4567,3154.9,3152.8,0.1685]
[1763482803330,0.4567,3154.9,3152.8,0.001]
[1763482805705,0.4567,3154.9,3153.1,6.62017893]
[1763482805905,0.3647281,3155.0,3153.7,6.62017893]
[1763482806130,0.3647281,3155.0,3154.3,6.62017893]
[1763482806324,0.3647281,3155.0,3154.9,0.1667]
[1763482806745,0.3647281,3155.0,3153.7,0.1667]
[1763482806962,0.3647281,3155.0,3154.1,0.4726]
[1763482807954,0.3647281,3155.0,3153.9,6.62017893]
[1763482808241,0.8624281,3155.0,3153.7,0.1667]
[1763482808854,0.3647281,3155.0,3154.1,6.62017893]
[1763482809222,0.1804,3154.2,3152.7,4.14494689]
[1763482809519,0.1804,3154.2,3152.7,0.1675]
[1763482809710,0.4977,3154.1,3152.4,0.001]
[1763482810224,0.4977,3154.1,3152.5,0.1675]
[1763482810547,0.4977,3154.1,3152.4,0.001]
[1763482811234,0.4977,3154.1,3152.7,0.1675]
[1763482811412,0.4977,3154.6,3153.1,6.62017893]
[1763482811615,0.4977,3154.6,3152.7,0.1675]
[1763482812356,0.4977,3154.6,3152.8,0.03271783]
[1763482812557,0.4977,3154.6,3152.9,0.4726]
[1763482813047,0.4977,3154.6,3152.8,0.001]
[1763482817147,0.4977,3154.6,3152.8,0.4736]
[1763482818460,0.4977,3154.6,3152.8,0.001]
[1763482818857,0.4977,3154.6,3152.8,0.4736]
[1763482819248,0.1804,3154.8,3153.3,5.64253378]
[1763482819451,0.4977,3154.7,3153.3,5.64253378]
[1763482820778,0.4977,3154.7,3152.8,0.001]
[1763482822167,0.4977,3154.7,3152.8,0.4685]
[1763482823200,0.4977,3154.7,3153.3,5.64253378]
[1763482824312,0.85166107,3156.6,3154.6,5.80963378]
[1763482824529,0.1942,3156.7,3155.5,5.64253378]
[1763482824823,0.1942,3156.7,3154.6,0.1671]
[1763482824824,0.481648,3155.6,3154.6,0.6346]
[1763482824972,0.481648,3155.6,3154.6,6.27713378]
[1763482825176,0.481648,3155.6,3154.7,0.4675]
[1763482825389,0.481648,3155.6,3154.8,5.64253378]
[1763482825788,0.481648,3155.6,3154.8,6.11003378]
[1763482826409,0.481648,3155.6,3155.4,5.64253378]
[1763482826719,0.481648,3155.6,3154.6,0.79887021]
[1763482826720,0.481648,3155.6,3154.8,5.64253378]
[1763482827810,0.481648,3155.6,3154.6,0.1671]
[1763482828721,0.481648,3155.6,3154.7,0.03169873]
[1763482828896,0.481648,3155.6,3154.6,0.1671]
[1763482829096,0.970748,3155.6,3154.6,0.1671]
[1763482829504,0.970748,3155.6,3154.2,5.64253378]
[1763482829925,0.481648,3155.6,3154.3,0.4675]
[1763482830132,0.970748,3155.6,3154.3,0.4675]
[1763482830626,0.4891,3155.5,3154.2,5.64253378]
[1763482830822,0.1942,3155.5,3154.3,0.4675]
[1763482831423,0.481648,3155.6,3154.3,0.4675]
[1763482831621,0.481648,3155.6,3154.8,5.64253378]
[1763482831802,0.481648,3155.6,3154.9,0.1671]
[1763482832896,0.481648,3155.6,3155.0,0.4675]
[1763482833091,0.481648,3155.6,3155.4,5.64253378]
[1763482833325,0.481648,3155.6,3155.5,0.4675]
[1763482834825,0.4891,3157.1,3155.5,0.4675]
[1763482834826,0.1942,3156.9,3155.5,6.92732584]
[1763482835206,0.1942,3156.9,3156.0,0.1446]
[1763482835402,0.4891,3156.5,3155.1,0.1446]
[1763482835590,0.4891,3156.4,3155.1,0.1446]
[1763482835795,0.4891,3156.8,3155.5,6.45982584]
[1763482836026,0.1942,3156.9,3155.5,6.45982584]
[1763482836231,0.4913,3156.5,3155.1,0.6121]
[1763482836407,0.4913,3156.5,3155.1,0.1446]
[1763482836603,0.4913,3156.5,3155.0,6.45982584]
[1763482836604,0.4913,3156.0,3155.0,6.45982584]
[1763482838039,0.4913,3156.0,3154.5,6.45982584]
[1763482838712,0.4913,3156.0,3153.4,0.15816774]
[1763482838713,0.4913,3156.0,3153.6,0.4566]
[1763482838917,0.4913,3156.0,3154.0,6.45982584]
[1763482839502,0.1942,3156.9,3155.0,6.45982584]
[1763482839707,0.1942,3156.9,3155.5,0.001]
[1763482839708,0.4913,3156.0,3155.5,0.001]
[1763482840107,0.005,3156.1,3155.5,0.001]
[1763482841805,0.005,3156.1,3155.6,6.45982584]
[1763482843135,0.005,3156.1,3156.0,0.1446]
[1763482843550,0.005,3156.1,3156.0,0.6012]
[1763482843749,0.6376,3157.4,3156.1,6.45982584]
[1763482843938,0.003,3157.4,3156.6,6.45982584]
[1763482844248,0.003,3157.4,3156.0,0.1446]
[1763482844249,0.003,3157.4,3157.3,0.045]
[1763482844424,0.003,3157.4,3157.3,6.50482584]
[1763482844819,0.003,3157.4,3157.3,6.96142584]
[1763482845124,0.006,3157.6,3157.3,6.96142584]
[1763482845336,0.006,3157.6,3157.4,0.4566]
[1763482845827,0.00560522,3159.0,3157.4,0.4566]
[1763482846217,0.00560522,3159.0,3157.3,0.045]
[1763482846218,0.00560522,3159.0,3158.0,6.45982584]
[1763482846418,0.00560522,3159.0,3157.5,0.4566]
[1763482846728,0.4913,3158.9,3157.3,0.045]
[1763482846941,0.4913,3158.9,3157.5,6.45982584]
[1763482847259,6.45982584,3161.0,3157.4,0.4566]
[1763482847260,0.85166107,3161.6,3160.9,0.1234]
[1763482847425,0.67689631,3161.7,3161.5,6.45982584]
[1763482847623,1.64452777,3162.3,3160.9,0.1234]
[1763482847624,0.5,3162.3,3160.9,0.1234]
[1763482847818,0.4913,3162.2,3162.0,2.16819194]
[1763482848050,0.4913,3162.2,3162.1,1.08445574]
[1763482848361,0.5,3162.3,3161.9,1.62614278]
[1763482848362,0.4992,3162.3,3161.9,1.08445574]
[1763482848731,0.4992,3162.3,3162.1,1.08445574]
[1763482848915,0.4992,3162.3,3161.9,1.08445574]
[1763482849230,0.4992,3162.3,3161.7,1.62614278]
[1763482849231,0.4913,3162.2,3161.7,0.97012574]
[1763482849552,0.4992,3162.3,3161.1,2.16819194]
[1763482849553,0.4992,3162.3,3161.8,2.16819194]
[1763482849755,0.4992,3162.3,3162.0,2.16819194]
[1763482849915,0.4992,3162.3,3162.2,2.16819194]
[1763482850115,0.03159,3164.9,3162.2,2.44861568]
[1763482850320,0.03159,3164.9,3161.4,2.6278457]
[1763482850321,0.03159,3164.9,3163.3,1.60640193]
[1763482850561,0.03159,3164.9,3163.6,1.60640193]
[1763482850743,0.03159,3164.9,3164.5,1.60640193]
[1763482850948,0.03159,3164.9,3163.7,0.27875055]
[1763482850949,0.03159,3164.9,3164.6,1.60640193]
[1763482851122,0.03159,3164.9,3164.5,1.60640193]
[1763482851324,0.03159,3164.9,3164.7,1.60640193]
[1763482851531,0.03159,3164.9,3163.6,0.63872025]
[1763482851532,0.03159,3164.9,3164.4,1.60640193]
[1763482851755,0.03159,3164.9,3164.0,1.60640193]
[1763482852348,0.03159,3164.9,3163.9,1.60640193]
[1763482852860,0.894567,3164.8,3163.8,1.60640193]
[1763482853060,0.894567,3164.8,3163.7,1.60640193]
[1763482853562,0.4913,3164.7,3164.2,1.60640193]
[1763482853758,0.4913,3164.7,3162.3,0.05]
[1763482853759,0.4913,3164.7,3163.1,1.60640193]
[1763482853925,0.1853,3163.9,3162.7,1.60340193]
[1763482854125,0.1853,3163.9,3161.1,5.68206699]
[1763482854126,0.1853,3163.9,3162.1,2.16819194]
[1763482854326,0.1853,3164.3,3162.7,2.16819194]
[1763482854725,0.1853,3164.3,3162.3,2.70942109]
[1763482854726,0.4913,3164.2,3162.3,2.16819194]
[1763482854925,0.4913,3164.2,3162.1,2.16819194]
[1763482855161,0.4913,3164.2,3161.9,2.16819194]
[1763482855365,0.4913,3164.2,3162.1,2.16819194]
[1763482855550,0.4913,3164.2,3162.2,2.16819194]
[1763482855753,0.4913,3164.2,3162.1,2.78659644]
[1763482856076,0.4913,3164.2,3162.1,2.16819194]
[1763482856369,0.4913,3164.2,3161.9,2.16819194]
[1763482856528,0.4913,3164.2,3161.6,2.16819194]
[1763482856724,0.4913,3164.2,3161.3,2.16819194]
[1763482857209,0.4913,3164.2,3160.9,2.83282109]
[1763482857210,0.4913,3164.2,3161.2,2.16819194]
[1763482857327,0.4913,3164.2,3161.7,5.61406174]
[1763482857528,0.4913,3164.2,3161.8,2.16819194]
[1763482858129,0.4913,3164.2,3161.7,2.16819194]
[1763482858326,6.10536174,3164.2,3161.2,2.16819194]
[1763482858557,0.1853,3164.3,3161.2,2.16819194]
[1763482858558,0.4913,3164.1,3161.3,2.16819194]
[1763482858863,0.4913,3164.1,3161.6,2.16819194]
[1763482859361,0.4913,3164.1,3161.5,2.16819194]
[1763482859861,0.4913,3164.1,3161.4,2.16819194]
[1763482860062,0.4913,3164.1,3161.8,2.16819194]
[1763482860264,0.4913,3164.1,3161.7,2.16819194]
[1763482860564,0.002,3164.2,3161.8,2.16819194]
[1763482860565,0.4913,3164.0,3161.8,2.16819194]
[1763482860761,0.4913,3164.0,3161.6,2.16819194]
[1763482860977,0.002,3164.2,3162.0,2.16819194]
[1763482863070,5.61406174,3163.6,3160.9,0.76088289]
[1763482863244,0.56140617,3163.5,3160.9,0.76088289]
[1763482863434,1.05270617,3163.5,3160.9,0.76088289]
[1763482863941,5.61406174,3163.0,3159.7,2.16819194]
[1763482864129,0.4913,3163.4,3159.8,0.0155738]
[1763482864332,5.61406174,3162.9,3159.8,2.16819194]
[1763482864568,0.56140617,3162.8,3159.7,0.63035011]
[1763482864754,5.61406174,3162.6,3159.2,2.16819194]
[1763482865153,0.4913,3162.5,3159.2,2.16819194]
[1763482865352,5.61406174,3162.0,3159.0,2.16819194]
[1763482865584,5.61406174,3161.4,3158.8,0.648752]
[1763482865878,1.05270617,3161.3,3158.3,2.16819194]
[1763482866166,1.05270617,3161.3,3157.4,7.49467903]
[1763482866167,5.61406174,3161.1,3158.0,2.16819194]
[1763482866366,5.61406174,3161.1,3158.1,2.16819194]
[1763482866534,0.6552,3161.0,3158.1,2.16819194]
[1763482866731,0.6552,3161.0,3158.4,2.16819194]
[1763482866964,0.4687,3160.9,3158.4,2.16819194]
[1763482867275,0.4687,3160.9,3158.2,2.16819194]
[1763482867771,0.4687,3160.9,3157.8,2.70942109]
[1763482867772,0.4687,3160.9,3158.3,2.16819194]
[1763482868073,0.4687,3160.9,3158.1,2.16819194]
[1763482868270,0.4687,3160.9,3158.2,2.16819194]
[1763482868445,5.61406174,3160.7,3157.9,2.16819194]
[1763482868650,0.56140617,3160.6,3157.9,2.16819194]
[1763482868875,1.03010617,3160.6,3157.8,2.16819194]
[1763482869177,1.03010617,3160.6,3157.7,0.62486893]
[1763482869178,5.61406174,3160.0,3157.9,2.16819194]
[1763482869375,5.61406174,3160.0,3157.5,2.16819194]
[1763482869580,0.4687,3159.9,3157.5,2.16819194]
[1763482869765,0.60827617,3159.8,3157.4,2.16819194]
[1763482870145,0.60827617,3159.8,3156.5,3.97744689]
[1763482870146,0.4687,3159.7,3157.5,2.16819194]
[1763482870343,0.4687,3159.7,3157.3,2.16819194]
[1763482870881,0.1865,3157.4,3156.9,2.16819194]
[1763482871180,0.1865,3157.4,3157.3,0.80670857]
[1763482871378,0.6552,3157.4,3157.3,0.80670857]
[1763482871689,0.6544,3157.4,3157.3,0.80670857]
[1763482871860,0.6544,3157.4,3157.2,0.80670857]
[1763482872178,0.1865,3158.2,3156.6,2.16819194]
[1763482872381,0.1865,3158.2,3156.2,0.62078612]
[1763482872382,0.1865,3158.2,3157.5,0.80702407]
[1763482872549,0.4687,3158.1,3157.4,0.80702407]
[1763482873469,0.4687,3158.1,3157.5,0.80702407]
[1763482873687,0.4687,3158.1,3157.4,0.80702407]
[1763482873998,0.4687,3158.1,3157.0,0.80702407]
[1763482874161,0.4687,3158.1,3156.0,0.001]
[1763482874367,0.4687,3158.1,3155.5,0.28090157]
[1763482874594,0.62692617,3158.0,3155.5,0.28090157]
[1763482875205,0.4687,3157.9,3155.5,0.28090157]
[1763482875366,0.4687,3157.9,3155.6,0.28090157]
[1763482875557,0.4687,3157.9,3154.8,0.001]
[1763482876193,5.0,3157.8,3154.8,0.001]
[1763482876493,0.4687,3157.7,3154.8,0.001]
[1763482876795,1.01557,3157.7,3154.8,0.001]
[1763482877196,0.4687,3157.6,3154.8,0.2816265]
[1763482877396,0.4687,3157.6,3154.9,0.2806265]
[1763482877802,0.4687,3157.6,3154.6,0.001]
[1763482878093,7.14327483,3157.6,3154.6,0.001]
[1763482878404,9.27311867,3157.5,3154.6,0.001]
[1763482878692,9.74181867,3157.5,3154.6,0.001]
[1763482878904,0.4687,3157.4,3154.6,0.001]
[1763482879197,8.50410419,3156.3,3154.0,0.28043294]
[1763482879398,0.85041042,3156.2,3153.7,0.001]
[1763482879581,0.1865,3156.2,3153.7,0.001]
[1763482879764,0.4687,3156.1,3153.7,0.001]
[1763482879960,8.50410419,3156.0,3153.1,0.001]
[1763482880174,8.50410419,3156.0,3153.1,0.2810319]
[1763482880391,8.50410419,3156.0,3153.1,0.001]
[1763482880392,1.37138042,3155.9,3153.1,0.001]
[1763482880593,8.50410419,3154.8,3152.5,0.28007073]
[1763482880904,0.6702,3154.7,3151.9,0.001]
[1763482881063,0.6702,3154.7,3152.4,0.001]
[1763482881263,0.4741,3154.6,3152.4,0.001]
[1763482881498,0.4741,3154.6,3152.4,0.281349]
[1763482881698,0.4741,3154.6,3152.5,0.001]
[1763482882197,0.4741,3154.6,3152.0,0.001]
[1763482882696,5.0,3154.8,3152.9,8.51637295]
[1763482882898,0.1961,3155.4,3153.0,0.27994338]
[1763482883088,0.4741,3155.3,3153.1,0.001]
[1763482883471,0.1961,3155.5,3153.3,8.51637295]
[1763482883795,0.4741,3155.4,3153.4,0.001]
[1763482885003,0.4741,3155.4,3152.8,0.27963578]
[1763482885184,0.4741,3155.4,3152.9,0.001]
[1763482886313,0.4741,3156.0,3154.0,8.51637295]
[1763482886468,0.1865,3156.2,3154.1,0.28061315]
[1763482887007,0.1865,3156.2,3154.2,0.001]
[1763482887205,0.4741,3156.1,3154.2,0.001]
[1763482887794,0.1865,3156.2,3154.2,0.001]
[1763482887994,0.4741,3156.7,3154.2,0.28052149]
[1763482888321,0.1865,3157.3,3154.6,8.51637295]
[1763482888473,0.1865,3157.3,3155.2,8.51637295]
[1763482888678,0.4741,3157.2,3155.3,0.28052149]
[1763482888880,0.1865,3157.3,3155.3,0.28052149]
[1763482889084,0.4741,3157.2,3155.2,0.001]
[1763482889392,0.4741,3157.2,3155.3,0.001]
[1763482889604,0.1865,3157.3,3155.3,0.001]
[1763482889777,0.1865,3157.3,3155.3,0.28059938]
[1763482889982,0.6606,3157.3,3155.3,0.28059938]
[1763482890220,0.6606,3157.3,3155.4,0.27959938]
[1763482890530,0.1865,3157.3,3155.5,0.27959938]
[1763482890819,5.0,3158.1,3156.1,8.51637295]
[1763482890980,5.0,3158.1,3156.2,0.28059938]
[1763482891182,0.6606,3158.2,3156.3,0.001]
[1763482891724,0.6702,3158.7,3156.3,0.001]
[1763482892598,0.6702,3158.7,3156.3,0.64652094]
[1763482892599,0.4741,3158.6,3156.3,0.64652094]
[1763482892904,0.1961,3158.7,3156.7,8.51637295]
[1763482893102,0.1961,3158.7,3156.8,0.27959938]
[1763482893305,0.4741,3159.1,3156.8,0.28059938]
[1763482893488,0.4741,3159.1,3156.9,0.001]
[1763482893695,0.1961,3159.4,3156.9,0.001]
[1763482894100,0.4741,3159.3,3156.9,0.001]
[1763482894428,0.4741,3159.3,3156.9,0.28059938]
[1763482894608,0.4741,3159.3,3156.9,0.27959938]
[1763482894825,0.9186573,3159.2,3157.0,0.27959938]
[1763482894984,0.4741,3159.3,3156.4,8.51637295]
[1763482895188,0.4733,3159.2,3155.9,0.0018]
[1763482895892,0.4733,3159.2,3155.9,0.15983283]
[1763482896116,8.51637295,3158.7,3155.9,0.0018]
[1763482896316,8.51637295,3158.7,3155.2,8.51637295]
[1763482896317,8.51637295,3158.7,3156.0,0.0018]
[1763482896516,0.8516373,3158.6,3156.0,0.0018]
[1763482897032,0.002,3158.7,3156.0,0.0018]
[1763482897388,0.4716,3158.6,3156.0,0.0018]
[1763482897588,0.4716,3158.6,3155.5,0.0018]
[1763482898101,5.0,3158.5,3155.5,0.0018]
[1763482898503,0.4716,3158.4,3155.5,0.0018]
[1763482898720,0.54716,3158.3,3155.5,0.0018]
[1763482899034,0.74266,3158.3,3155.5,0.0018]
[1763482899203,0.4716,3158.2,3155.5,0.0018]
[1763482900430,0.1955,3158.3,3156.3,8.51637295]
[1763482900596,0.1955,3158.3,3156.4,0.03168165]
[1763482900787,0.6671,3158.3,3156.5,0.0018]
[1763482900989,0.6671,3158.3,3156.5,0.64300476]
[1763482901226,0.1955,3156.6,3156.5,0.64300476]
[1763482901729,0.6671,3156.6,3155.1,0.1673]
[1763482901937,0.6671,3156.6,3154.8,0.1673]
[1763482902224,0.4716,3156.5,3154.8,0.1673]
[1763482903192,0.4716,3156.5,3154.8,0.6203]
[1763482903401,0.4716,3156.5,3154.8,0.1673]
[1763482903633,0.4716,3156.5,3153.8,0.1566643]
[1763482903798,8.51637295,3156.4,3153.6,0.453]
[1763482904002,1.57749225,3156.3,3153.6,0.453]
[1763482904225,1.37039729,3156.3,3153.6,0.453]
[1763482904417,5.4716,3156.2,3153.6,0.453]
[1763482904619,5.4716,3156.2,3153.6,1.08198475]
[1763482904931,0.4716,3156.1,3153.6,0.453]
[1763482905134,0.54716,3156.0,3153.7,0.453]
[1763482905437,0.4716,3156.1,3153.7,0.453]
[1763482905630,0.1955,3155.9,3153.7,0.453]
[1763482906135,0.4716,3155.8,3153.7,0.453]
[1763482906911,0.4716,3155.8,3154.0,0.501]
[1763482909641,1.14903332,3155.8,3154.0,0.501]
[1763482909846,0.4716,3155.8,3154.0,0.501]
[1763482909999,0.4716,3155.7,3154.0,0.501]
[1763482910428,0.54716,3155.6,3154.0,0.501]
[1763482910931,0.4716,3155.5,3154.0,0.501]
[1763482911233,5.4716,3155.5,3154.0,0.501]
[1763482911533,0.4716,3155.4,3154.0,0.501]
[1763482912113,0.4665303,3155.4,3154.0,0.501]
[1763482913039,0.4665303,3155.4,3155.0,0.501]
[1763482913397,8.51268692,3155.3,3153.2,0.81307437]
[1763482913623,0.89792172,3155.2,3153.3,0.453]
[1763482913822,13.70818692,3155.9,3153.3,0.453]
[1763482913823,14.55533845,3155.9,3153.3,0.453]
[1763482914036,0.67700904,3155.8,3153.3,0.453]
[1763482914250,0.4716,3155.7,3153.3,0.453]
[1763482915231,5.4716,3155.7,3153.3,0.453]
[1763482915432,8.51268692,3155.2,3152.6,0.453]
[1763482915665,8.51268692,3154.6,3152.3,0.80404346]
[1763482916127,5.6671,3154.5,3152.3,0.80404346]
[1763482916326,5.6671,3154.5,3152.3,0.1673]
[1763482916559,0.4716,3154.4,3153.3,0.001]
[1763482916926,0.1955,3153.4,3153.3,0.001]
[1763482917353,0.1955,3153.7,3153.3,0.001]
[1763482917737,0.4716,3153.6,3153.3,0.001]
[1763482917938,0.4716,3153.6,3151.9,0.454]
[1763482917939,0.4716,3153.6,3151.9,0.001]
[1763482918347,0.4716,3153.6,3152.0,0.453]
[1763482918548,0.4716,3153.6,3152.0,1.09724055]
[1763482918755,0.4708,3153.6,3152.0,0.453]
[1763482919659,0.4708,3153.6,3151.9,0.001]